lending/lending_fUSD_20250131
["ID","MTS","AMOUNT","RATE_DAILY","PERIOD"]
[351013857,1738285862825,-500.0,0.00019452,3]
[351013858,1738285862834,-1463.86,0.00019452,3]
[351013859,1738285862843,-500.0,0.00019452,3]
[351013860,1738285862852,-500.0,0.00019452,3]
[351013861,1738285862862,-720.96,0.00019452,3]
[351013862,1738285862871,-9886.34,0.00019452,3]
[351013863,1738285862880,-500.0,0.00019452,3]
[351013864,1738285862890,-629.88,0.00019452,3]
[351013865,1738285862898,-792.12,0.00019452,3]
[351013866,1738285862908,-793.23,0.00019452,3]
[351013867,1738285862917,-500.0,0.00019452,3]
[351013868,1738285862926,-666.88953971,0.00019452,2]
[351013869,1738285862940,-304.29046029,0.00019452,2]
[351013870,1738285862949,-500.0,0.00019452,3]
[351013871,1738285862958,-4544.77,0.00019452,3]
[351013872,1738285862968,-895.23,0.00019452,3]
[351013873,1738285862977,-3260.69,0.00019452,3]
[351013874,1738285862986,-151.0,0.00019452,2]
[351013875,1738285862995,-935.18,0.00019452,3]
[351013876,1738285863004,-500.0,0.00019452,3]
[351013877,1738285863013,-2474.38,0.00019452,3]
[351013878,1738285863022,-2169.07,0.00019452,3]
[351013879,1738285863031,-955.19,0.00019452,3]
[351013880,1738285863041,-500.0,0.00019452,3]
[351013881,1738285863051,-2212.29,0.00019452,3]
[351013882,1738285863061,-500.0,0.00019452,3]
[351013883,1738285863070,-521.90915046,0.00019452,3]
[351013884,1738285863756,-500.0,0.00019178,2]
[351013885,1738285863766,-28.9210113,0.00019315,3]
[351013886,1738285863815,-54.02876333,0.00019178,2]
[351013887,1738285863827,-445.97123667,0.00019178,2]
[351013888,1738285863837,-471.0789887,0.00019315,3]
[351013889,1738285863847,-3816.46970419,0.00019452,3]
[351013890,1738285864276,-500.0,0.00019178,2]
[351013891,1738285864287,-423.06456235,0.00019178,2]
[351013892,1738285864297,-429.74719859,0.00019178,2]
[351013893,1738285864318,-2266.45280141,0.00019178,2]
[351013894,1738285864328,-500.0,0.00019178,2]
[351013895,1738285864338,-352.25952447,0.00019315,3]
[351013896,1738285864350,-147.74047553,0.00019315,3]
[351013897,1738285864360,-500.0,0.00019315,3]
[351013898,1738285864372,-987.15952447,0.00019315,3]
[351013911,1738286542494,152.38,0.00010137,2]
[351013945,1738287031718,-325.33,0.00016226,2]
[351013946,1738287031729,-150.0,0.00016487,2]
[351013947,1738287031740,-152.38,0.00017184,2]
[351013948,1738287031751,-208.0,0.0001727,2]
[351013949,1738287031761,-242.15097747,0.0001749,2]
[351013950,1738287031771,-805.75002954,0.0001749,2]
[351013951,1738287031782,-3915.16160551,0.0001749,2]
[351013952,1738287031792,-208.0,0.0001759,2]
[351013953,1738287031802,-170.44,0.00017627,2]
[351013954,1738287031814,-250.0,0.00017627,2]
[351013955,1738287031830,-324.9,0.00017647,2]
[351013956,1738287031840,-150.16,0.00017653,2]
[351013957,1738287031850,-177.37,0.00017671,2]
[351013958,1738287031860,-776.65,0.00017729,2]
[351013959,1738287031870,-634.49545201,0.00017843,2]
[351013960,1738287031883,-703.10414995,0.00017843,2]
[351013961,1738287031926,-759.29039804,0.00017843,2]
[351013962,1738287031936,-159.0,0.00017848,2]
[351013963,1738287031946,-150.0,0.00017849,2]
[351013964,1738287031956,-101.82764322,0.00017849,2]
[351013965,1738287031968,-48.17235678,0.00017849,2]
[351013966,1738287031978,-150.0,0.00017849,2]
[351013967,1738287031988,-150.0,0.00017849,2]
[351013968,1738287031998,-150.0,0.00017849,2]
[351013969,1738287032008,-208.0,0.0001791,2]
[351013970,1738287032017,-23900.0,0.0001793,2]
[351013971,1738287032028,-323.78,0.00018042,2]
[351013972,1738287032038,-1000.0,0.0001815,2]
[351013973,1738287032048,-208.0,0.0001823,2]
[351013974,1738287032057,-9477.0,0.00018422,2]
[351013975,1738287032067,-325.33,0.0001849,2]
[351013976,1738287032077,-208.0,0.0001854,2]
[351013977,1738287032087,-185.47,0.00018656,30]
[351013978,1738287032096,-500.0,0.000187,6]
[351013979,1738287032107,-257.0,0.00018733,2]
[351013980,1738287032117,-152.0,0.00018733,3]
[351013981,1738287032127,-14506.28322303,0.000188,2]
[351013982,1738287032139,-2861.13522187,0.000188,2]
[351013983,1738287032165,-541.345,0.000188,2]
[351013984,1738287032177,-6854.92847332,0.000188,2]
[351014488,1738287037484,-1363.83747749,0.000188,2]
[351014490,1738287037496,-6262.24516449,0.000188,2]
[351014499,1738287037570,-926.19250293,0.000188,2]
[351014508,1738287037652,-492.05823239,0.000188,2]
[351014511,1738287037663,-287.56529037,0.000188,2]
[351014520,1738287037746,-6426.24281749,0.000188,2]
[351014726,1738287039759,-6200.97902162,0.000188,2]
[351014729,1738287039772,-340.15525624,0.000188,2]
[351014731,1738287039785,-3952.6375831,0.000188,2]
[351014736,1738287039827,-104590.61993538,0.000188,2]
[351014746,1738287039905,-604.13993734,0.000188,2]
[351015029,1738287042636,-1047.25269167,0.000188,2]
[351015038,1738287042718,-50130.70468253,0.000188,2]
[351015041,1738287042734,-22962.09038652,0.000188,2]
[351015046,1738287042791,-1109.79189269,0.000188,2]
[351015320,1738287045661,-23800.000001,0.000188,2]
[351015353,1738287045977,-519.55176326,0.000188,2]
[351015563,1738287217203,191.89,0.00023,120]
[351015565,1738287377072,167.22,0.00010137,2]
[351015567,1738287425988,933.9161027,0.00023,120]
[351015569,1738288174142,-2169.17670796,0.00015491,10]
[351015571,1738288223254,188.93,0.00010137,2]
[351015579,1738288232054,-3860.02648129,0.00015491,10]
[351015580,1738288232066,-135.52681075,0.00015491,10]
[351015581,1738288232076,-344.62601479,0.00015491,2]
[351015582,1738288232085,-158.41225096,0.00015937,2]
[351015583,1738288232130,-193.14774904,0.00015937,2]
[351015584,1738288232139,-1059.0,0.00016306,2]
[351015585,1738288232148,-188.13247927,0.00017164,2]
[351015586,1738288232160,-870.86752073,0.00017164,2]
[351015587,1738288232169,-150.0,0.00017383,2]
[351015588,1738288232179,-493.08693485,0.00017708,2]
[351015589,1738288232228,-876.93124492,0.00017708,2]
[351015590,1738288232239,-129.98182023,0.00017708,2]
[351015591,1738288232249,-1641.85902977,0.00017724,2]
[351015593,1738288232260,-2679.85253739,0.00017724,2]
[351015595,1738288232271,-1219.53717107,0.00017724,2]
[351015709,1738288237602,-304.80093578,0.00017724,2]
[351015710,1738288237614,-1090.84226723,0.00017724,2]
[351015711,1738288237749,-290.33609579,0.00017724,2]
[351015712,1738288237762,-1802.36640994,0.00017724,2]
[351015713,1738288237778,-10553.15555303,0.00017724,2]
[351015714,1738288237789,-695.44,0.00017746,2]
[351015715,1738288237800,-777.29,0.0001782,2]
[351015716,1738288237809,-470.88,0.00017823,2]
[351015717,1738288237818,-300.0,0.00017835,2]
[351015718,1738288237829,-1000.0,0.00017836,2]
[351015719,1738288237839,-150.0,0.00017935,2]
[351015720,1738288237848,-150.0,0.00017935,2]
[351015721,1738288237859,-808.041,0.00017935,2]
[351015722,1738288237868,-150.16,0.00017957,2]
[351015723,1738288237878,-388.32,0.00018001,2]
[351015724,1738288237888,-1059.0,0.00018022,2]
[351015725,1738288237898,-176.19,0.0001806,30]
[351015726,1738288237909,-916.9,0.0001813,2]
[351015727,1738288237919,-232.03,0.00018135,2]
[351015728,1738288237930,-351.56,0.00018201,2]
[351015729,1738288237940,-398.09828334,0.00018389,2]
[351015730,1738288237950,-1911.0,0.000185,2]
[351015731,1738288237960,-500.0,0.000186,6]
[351015732,1738288237969,-1000.0,0.000187,6]
[351015733,1738288237979,-379.52,0.000188,2]
[351015734,1738288237989,-376.22,0.000188,2]
[351015735,1738288237999,-3000.0,0.000188,2]
[351015736,1738288238009,-150.0,0.000188,2]
[351015737,1738288238019,-216874.29919531,0.000188,2]
[351015739,1738288238040,-2030.97664954,0.000188,2]
[351015741,1738288238052,-196640.0,0.000188,2]
[351015742,1738288238072,-1018.5,0.000188,2]
[351015743,1738288238083,-1454.3225435,0.000188,2]
[351015744,1738288238096,-916.34,0.000188,2]
[351015746,1738288238108,-28178.96688687,0.000188,2]
[351015749,1738288238133,-321.1250003,0.000188,2]
[351015793,1738288239676,-310.69365133,0.000188,2]
[351015794,1738288239814,-1787.93298377,0.000188,2]
[351015795,1738288239826,-680.75824123,0.000188,2]
[351015796,1738288239839,-598.5713343,0.000188,2]
[351015797,1738288239852,-2293.8030258,0.000188,2]
[351015798,1738288239864,-289.96179788,0.000188,2]
[351015799,1738288239882,-521.04433236,0.000188,2]
[351015800,1738288239895,-2429.4141106,0.000188,2]
[351015801,1738288239907,-4142.98560294,0.000188,2]
[351015802,1738288239929,-10195.0,0.000188,2]
[351015803,1738288239940,-23825.02331838,0.000188,2]
[351015804,1738288239970,-469.31070039,0.000188,2]
[351015805,1738288239983,-10310.28202644,0.000188,2]
[351015806,1738288239996,-577.46205938,0.000188,2]
[351015807,1738288240013,-494.09731466,0.000188,2]
[351015808,1738288240025,-1199.79854666,0.000188,2]
[351015809,1738288240076,-665.31684,0.000188,2]
[351015810,1738288240087,-947.72946,0.000188,2]
[351015811,1738288240099,-828.46797362,0.000188,2]
[351015892,1738288242745,-485.305,0.000188,2]
[351016156,1738288246027,-32633.32098265,0.000188,2]
[351016157,1738288246040,-1639.78842512,0.000188,2]
[351016158,1738288246100,-480.73013795,0.000188,2]
[351016159,1738288246113,-3125.37625425,0.000188,2]
[351016160,1738288246126,-5398.0,0.000188,2]
[351016161,1738288246138,-3244.5329803,0.000188,2]
[351016282,1738288600580,675.0,0.00023,120]
[351016283,1738289055110,204.22,0.00010137,2]
[351016290,1738289431936,-337.79,0.00015861,2]
[351016291,1738289431947,-706.63,0.00017555,2]
[351016292,1738289431958,-300.0,0.00017631,2]
[351016293,1738289431969,-1000.0,0.00017632,2]
[351016294,1738289431979,-479.06110158,0.00017632,2]
[351016295,1738289431991,-6675.82784498,0.00017632,2]
[351016296,1738289432008,-10150.0,0.00017632,2]
[351016297,1738289432073,-6595.11105344,0.00017632,2]
[351016298,1738289432084,-250.0,0.00017696,2]
[351016299,1738289432093,-2000.0,0.0001784,2]
[351016300,1738289432104,-200.0,0.00017896,2]
[351016301,1738289432114,-150.16,0.00017946,2]
[351016302,1738289432124,-216.61,0.00018,2]
[351016303,1738289432134,-800.0,0.00018068,2]
[351016304,1738289432145,-170.44,0.00018072,2]
[351016305,1738289432155,-500.0,0.0001808,2]
[351016306,1738289432168,-150.0,0.00018082,2]
[351016307,1738289432178,-827.05,0.00018083,2]
[351016308,1738289432188,-314.4,0.00018097,2]
[351016309,1738289432197,-204.01,0.0001811,2]
[351016310,1738289432209,-2751.0,0.0001812,2]
[351016311,1738289432218,-337.79,0.00018125,2]
[351016312,1738289432228,-301.95,0.00018278,2]
[351016313,1738289432239,-596.25,0.00018278,2]
[351016314,1738289432249,-3911.01,0.00018285,2]
[351016315,1738289432258,-1006.0,0.00018285,2]
[351016316,1738289432268,-151.178,0.00018285,2]
[351016317,1738289432278,-1107.0,0.00018285,2]
[351016318,1738289432287,-167.38,0.00018296,30]
[351016319,1738289432297,-500.0,0.000184,6]
[351016320,1738289432306,-1000.0,0.000185,6]
[351016321,1738289432315,-404.67404125,0.00018578,2]
[351016322,1738289432325,-1500.0,0.000186,6]
[351016323,1738289432335,-2000.0,0.000187,6]
[351016325,1738289432344,-837.1107,0.000188,2]
[351016326,1738289432354,-1368.18478175,0.000188,2]
[351016327,1738289432364,-1009.26,0.000188,2]
[351016328,1738289432374,-3000.0,0.000188,2]
[351016329,1738289432383,-152.11880927,0.000188,2]
[351016330,1738289432392,-7408.18545665,0.000188,2]
[351016331,1738289432422,-393.06610409,0.000188,2]
[351016332,1738289432431,-7191.74012225,0.000188,2]
[351016333,1738289432447,-296.880003,0.000188,2]
[351016339,1738289437768,-2445.53711731,0.000188,2]
[351016340,1738289437783,-1249.3,0.000188,2]
[351016341,1738289437861,-206139.99999996,0.000188,2]
[351016342,1738289437875,-587.90658714,0.000188,2]
[351016343,1738289437889,-808.5794429,0.000188,2]
[351016344,1738289438011,-1176.10720746,0.000188,2]
[351016345,1738289438092,-10140.0,0.000188,2]
[351016551,1738289440406,-440.30697196,0.000188,2]
[351016553,1738289440417,-258.03676712,0.000188,2]
[351016564,1738289440552,-2232.60114412,0.000188,2]
[351016565,1738289440565,-984.14229198,0.000188,2]
[351016627,1738289442909,-44.27227271,0.000188,2]
[351016628,1738289442921,-1938.45550524,0.000188,2]
[351016629,1738289442932,-862.26441228,0.000188,2]
[351016643,1738289445863,-532.03038601,0.000188,2]
[351016666,1738289446446,-190917.0655373,0.000188,2]
[351016668,1738289446456,-2500.0,0.000188,6]
[351016670,1738289446465,-7801.2515607,0.00018846,2]
[351016672,1738289446474,-208.0,0.0001886,2]
[351016674,1738289446484,-157.42399618,0.00018877,2]
[351016676,1738289446493,-193.93,0.0001889,2]
[351016678,1738289446502,-193.93,0.0001889,2]
[351016680,1738289446512,-218.93933496,0.0001889,2]
[351016682,1738289446522,-7801.2515607,0.00018892,2]
[351016684,1738289446531,-300.0,0.00018899,2]
[351016686,1738289446540,-300.0,0.00018899,2]
[351016688,1738289446549,-299.68851232,0.00018899,2]
[351016690,1738289446558,-86641.31559426,0.000189,2]
[351016692,1738289446570,-52537.0,0.000189,2]
[351016706,1738289720317,198.013111,0.00023,120]
[351016707,1738289898007,153.73,0.00010137,2]
[351016710,1738290308316,2426882.10227358,0.00012,2]
[351016711,1738290333285,151.57839609,0.0002,120]
[351016713,1738290484303,38406.07542152,0.0001,2]
[351016739,1738290632179,-322.27,0.00015951,2]
[351016740,1738290632191,-150.43677657,0.00016438,2]
[351016741,1738290632202,-153.73,0.00017184,2]
[351016742,1738290632211,-353.31,0.00017762,2]
[351016743,1738290632221,-623.31216802,0.00017768,2]
[351016744,1738290632234,-376.68783198,0.00017768,2]
[351016745,1738290632243,-2188.78945933,0.00017822,2]
[351016746,1738290632257,-345.3348,0.00017822,2]
[351016747,1738290632287,-4162.57574067,0.00017822,2]
[351016748,1738290632296,-553.27,0.00017897,2]
[351016749,1738290632307,-172.55,0.0001792,2]
[351016750,1738290632318,-159.01,0.00017932,30]
[351016751,1738290632329,-2751.0,0.00017943,2]
[351016752,1738290632339,-76.20760752,0.00018068,2]
[351016753,1738290632352,-423.79239248,0.00018068,2]
[351016754,1738290632362,-243.87979205,0.00018068,2]
[351016755,1738290632374,-556.12020795,0.00018068,2]
[351016756,1738290632385,-150.0,0.00018122,2]
[351016757,1738290632394,-612.11987055,0.00018177,2]
[351016758,1738290632404,-322.27,0.00018215,2]
[351016759,1738290632414,-150.0,0.00018569,2]
[351016760,1738290632424,-1319.6661215,0.0001871,2]
[351016761,1738290632440,-1080.79234568,0.0001871,2]
[351016762,1738290632451,-213.44392282,0.0001871,2]
[351016763,1738290632461,-152.0,0.00018783,3]
[351016764,1738290632476,-405.0,0.00018799,2]
[351016765,1738290632486,-258.34607718,0.000188,2]
[351016766,1738290632512,-3.70122282,0.000188,2]
[351016767,1738290632522,-293.74174174,0.000188,2]
[351016903,1738290638007,-8671.11979,0.000188,2]
[351016904,1738290638024,-156.33826826,0.000188,2]
[351016905,1738290638044,-172.72846352,0.000188,2]
[351016906,1738290638056,-152.32386962,0.000188,2]
[351016907,1738290638116,-777.47513038,0.000188,2]
[351016908,1738290638127,-39.03092158,0.000188,2]
[351016909,1738290638228,-123.97490067,0.000188,2]
[351016910,1738290638239,-3655.02509933,0.000188,2]
[351016911,1738290638253,-1805.85099316,0.000188,2]
[351016912,1738290638266,-165.15196569,0.000188,2]
[351016913,1738290638279,-4341.98607655,0.00018831,2]
[351016914,1738290638293,-1118.89001594,0.00018831,2]
[351016915,1738290638306,-917.23710274,0.00018862,2]
[351017389,1738290643133,-310.0,0.00018862,2]
[351017390,1738290643347,-309.65170292,0.00018862,2]
[351017391,1738290643359,-2704.35037268,0.00018862,2]
[351017392,1738290643371,-1219.63691415,0.00018862,2]
[351017393,1738290643382,-218.93933496,0.0001889,2]
[351017394,1738290643393,-343.31628602,0.00018891,2]
[351017417,1738290646502,-401.17088171,0.000188,2]
[351017418,1738290646515,-88.93061829,0.000188,2]
[351017420,1738290646526,-663.1298011,0.00018891,2]
[351017421,1738290646536,-398.3186939,0.00018893,2]
[351017425,1738290785513,167.22,0.00010137,2]
[351017430,1738291659382,188.93,0.00010137,2]
[351017431,1738291753128,-550.0,0.00013,2]
[351017432,1738291753157,-150.0,0.0001365,2]
[351017433,1738291753184,-150.0,0.000143,2]
[351017434,1738291753212,-150.0,0.000143,2]
[351017435,1738291753240,-600.0,0.00015,2]
[351017436,1738291753269,-14.49624528,0.00015642,2]
[351017450,1738291832272,-365.82375472,0.00015642,2]
[351017451,1738291832282,-150.0,0.00017206,2]
[351017452,1738291832293,-442.61,0.00017582,2]
[351017453,1738291832303,-529.98,0.00017603,2]
[351017454,1738291832313,-300.0,0.00017651,2]
[351017455,1738291832323,-9049.31,0.00017652,2]
[351017456,1738291832334,-177.8,0.00017659,2]
[351017457,1738291832344,-703.71,0.00017746,2]
[351017458,1738291832354,-876.08128388,0.00017864,2]
[351017459,1738291832392,-123.91871612,0.00017864,2]
[351017460,1738291832402,-151.05,0.00017873,30]
[351017461,1738291832411,-380.32,0.00017906,2]
[351017462,1738291832422,-206.15,0.00017943,2]
[351017463,1738291832432,-129.50952327,0.0001799,2]
[351017464,1738291832444,-40.93047673,0.0001799,2]
[351017465,1738291832454,-606.85841781,0.00018,2]
[351017466,1738291832466,-505.70826469,0.00018,2]
[351017467,1738291832478,-607.4333175,0.00018,2]
[351017468,1738291832488,-381.87,0.00018162,2]
[351017469,1738291832499,-372.45,0.00018344,2]
[351017470,1738291832509,-157.42399618,0.00018411,2]
[351017471,1738291832519,-157.42399618,0.00018521,2]
[351017472,1738291832528,-157.42399618,0.00018603,2]
[351017473,1738291832538,-2178.25199,0.000187,2]
[351017474,1738291832548,-157.42399618,0.00018712,2]
[351017475,1738291832558,-374.77,0.00018735,2]
[351017476,1738291832568,-774.29,0.00018795,2]
[351017477,1738291832579,-449.3,0.00018795,2]
[351017478,1738291832589,-439.19,0.00018795,2]
[351017479,1738291832599,-289.93736098,0.00018795,2]
[351017480,1738291832620,-484.35263902,0.00018795,2]
[351017481,1738291832629,-774.29,0.00018795,2]
[351017482,1738291832639,-439.19,0.00018795,2]
[351017483,1738291832648,-439.19,0.00018795,2]
[351017484,1738291832657,-590.47,0.00018795,2]
[351017485,1738291832667,-157.42399618,0.00018795,2]
[351017486,1738291832676,-568.57659286,0.00018797,3]
[351017487,1738291832686,-4286.53965094,0.00018797,2]
[351017488,1738291832696,-173.56623918,0.00018797,2]
[351017489,1738291832706,-159.90783944,0.00018797,2]
[351017490,1738291832716,-159.90783943,0.00018799,2]
[351017491,1738291832726,-1767.57520295,0.000188,2]
[351017494,1738291832738,-180.21129705,0.000188,2]
[351017496,1738291832747,-154.0687989,0.000188,2]
[351017498,1738291832757,-382.0,0.000188,2]
[351017500,1738291832767,-367.68,0.000188,2]
[351017502,1738291832776,-743.839,0.000188,2]
[351017504,1738291832787,-174.23669982,0.000188,2]
[351017506,1738291832797,-2002.77,0.000188,2]
[351017508,1738291832807,-234.1008,0.000188,2]
[351017510,1738291832817,-159.90783943,0.000188,2]
[351017512,1738291832826,-1000.0,0.00018827,2]
[351017514,1738291832837,-1589.57809872,0.00018828,2]
[351017517,1738291832854,-646.9888024,0.00018828,2]
[351017520,1738291832870,-1209.496,0.00018828,2]
[351017522,1738291832881,-803.28453,0.00018828,2]
[351017527,1738291832917,-37.19221976,0.00018828,2]
[351017528,1738291832928,-284.92470055,0.00018859,2]
[351017531,1738291832944,-520.41993916,0.00018859,2]
[351017533,1738291832955,-1677.34175643,0.00018859,2]
[351017541,1738291833030,-1803.85325474,0.00018859,2]
[351017543,1738291833040,-454.57540403,0.00018873,2]
[351017545,1738291833050,-500.0,0.00018873,2]
[351017547,1738291833060,-159.17992848,0.0001889,2]
[351017549,1738291833070,-17513.49514615,0.0001889,2]
[351017552,1738291833083,-26383.06657068,0.0001889,2]
[351017554,1738291833095,-9526.37203779,0.0001889,2]
[351018031,1738291838118,-3511.95,0.0001889,2]
[351018036,1738291838175,-99856.30344739,0.0001889,2]
[351018043,1738291838225,-99634.15096376,0.0001889,2]
[351018050,1738291838278,-20780.54390345,0.0001889,2]
[351018052,1738291838290,-14514.10114541,0.0001889,2]
[351018055,1738291838301,-818.60819907,0.0001889,2]
[351018057,1738291838313,-8351.96028301,0.0001889,2]
[351018060,1738291838334,-263.12218513,0.0001889,2]
[351018067,1738291838389,-4795.77131008,0.0001889,2]
[351018069,1738291838401,-12893.8938511,0.0001889,2]
[351018072,1738291838413,-6596.03655,0.0001889,2]
[351018269,1738291846698,-20944.11386223,0.0001889,2]
[351018275,1738291846745,-843.4561543,0.0001889,2]
[351018278,1738291846766,-9135.8790888,0.0001889,2]
[351018381,1738292309971,254.12550227,0.00023,120]
[351018382,1738292625098,162.76,0.00010137,2]
[351018390,1738293032417,-375.76,0.00015814,2]
[351018391,1738293032428,-162.76,0.00016813,2]
[351018392,1738293032439,-810.606646,0.00017645,2]
[351018393,1738293032449,-1000.0,0.00017673,2]
[351018394,1738293032458,-200.0,0.00017734,2]
[351018395,1738293032468,-2210.561676,0.0001781,2]
[351018396,1738293032484,-2489.598324,0.0001781,2]
[351018397,1738293032493,-171.12,0.00017845,2]
[351018398,1738293032503,-9951.88167838,0.00017845,2]
[351018399,1738293032525,-11099.06832162,0.00017845,2]
[351018400,1738293032535,-265.23,0.00017876,2]
[351018401,1738293032545,-178.61,0.00017896,2]
[351018402,1738293032554,-592.62,0.00017903,2]
[351018403,1738293032564,-500.0,0.00017906,2]
[351018404,1738293032574,-375.76,0.00018078,2]
[351018405,1738293032583,-441.5,0.00018078,2]
[351018406,1738293032592,-408.99,0.00018078,2]
[351018407,1738293032602,-1005.79,0.00018078,2]
[351018408,1738293032611,-298.42,0.00018078,2]
[351018409,1738293032621,-983.86,0.00018078,2]
[351018410,1738293032630,-151.05,0.00018139,30]
[351018411,1738293032639,-3908.0,0.00018234,2]
[351018412,1738293032651,-441.841,0.00018234,2]
[351018413,1738293032660,-150.869,0.00018234,2]
[351018414,1738293032669,-1107.0,0.00018234,2]
[351018415,1738293032679,-200.0,0.000184,6]
[351018416,1738293032688,-500.0,0.000185,6]
[351018417,1738293032697,-700.0,0.000186,6]
[351018418,1738293032707,-1000.0,0.000187,6]
[351018419,1738293032716,-150.0,0.00018796,2]
[351018420,1738293032726,-341.4137,0.00018797,2]
[351018421,1738293032737,-3109.2366,0.00018797,2]
[351018422,1738293032746,-198.0271,0.00018797,2]
[351018423,1738293032755,-159.97219164,0.000188,2]
[351018424,1738293032765,-2128.47957798,0.000188,2]
[351018425,1738293032782,-250.22877249,0.000188,2]
[351018426,1738293032802,-621.8694052,0.000188,2]
[351018427,1738293032811,-173.56623918,0.000188,2]
[351018428,1738293032821,-253.61940121,0.000188,6]
[351018429,1738293032850,-946.38059879,0.000188,6]
[351018431,1738293032860,-152.0,0.00018812,3]
[351018433,1738293032869,-3000.57775561,0.00018831,2]
[351018435,1738293032880,-150.0,0.00018842,2]
[351018437,1738293032889,-3000.57775561,0.00018862,2]
[351018439,1738293032899,-988.079,0.00018871,2]
[351018441,1738293032908,-150.0,0.00018871,2]
[351018443,1738293032918,-168.178,0.00018871,2]
[351018444,1738293032927,-2698.59983097,0.0001888,10]
[351018445,1738293032937,-229.23881266,0.00018888,5]
[351018446,1738293032947,-30142.45793835,0.0001889,2]
[351018447,1738293032956,-1878.74434,0.0001889,2]
[351018448,1738293032965,-218.93933496,0.0001889,2]
[351018449,1738293032974,-3071.3216472,0.00018891,2]
[351018450,1738293032983,-3751.3473276,0.00018891,2]
[351018451,1738293032992,-778.5577711,0.00018891,2]
[351018452,1738293033001,-150.0645352,0.00018891,2]
[351018453,1738293033011,-7040.8154889,0.00018891,2]
[351018455,1738293033020,-3000.57775561,0.00018893,2]
[351018456,1738293033029,-5000.0,0.00018896,4]
[351018457,1738293033039,-108420.2512072,0.00018897,2]
[351018458,1738293033049,-175.05513193,0.00018897,2]
[351018459,1738293033060,-174.45111363,0.00018897,2]
[351018460,1738293033069,-53899.29966516,0.00018897,3]
[351018461,1738293033079,-151.0,0.00018899,2]
[351018462,1738293033088,-151.418411,0.00018899,2]
[351018463,1738293033098,-151.0,0.00018899,2]
[351018464,1738293033108,-151.0,0.00018899,2]
[351018465,1738293033118,-151.0,0.00018899,2]
[351018466,1738293033128,-151.0,0.00018899,2]
[351018467,1738293033138,-174.940958,0.00018899,2]
[351018468,1738293033149,-151.0,0.00018899,2]
[351018469,1738293033158,-151.0,0.00018899,2]
[351018470,1738293033168,-624.74,0.00018899,2]
[351018471,1738293033178,-300.0,0.00018899,2]
[351018472,1738293033188,-151.0,0.00018899,2]
[351018473,1738293033197,-151.0,0.00018899,2]
[351018474,1738293033207,-151.0,0.00018899,2]
[351018475,1738293033216,-151.108887,0.00018899,2]
[351018476,1738293033226,-151.0,0.00018899,2]
[351018477,1738293033236,-151.0,0.00018899,2]
[351018478,1738293033245,-151.0,0.00018899,2]
[351018479,1738293033255,-151.0,0.00018899,2]
[351018480,1738293033264,-151.0,0.00018899,2]
[351018481,1738293033274,-151.0,0.00018899,2]
[351018482,1738293033283,-151.239389,0.00018899,2]
[351018483,1738293033293,-151.0,0.00018899,2]
[351018484,1738293033302,-151.0,0.00018899,2]
[351018485,1738293033311,-151.0,0.00018899,2]
[351018486,1738293033320,-151.0,0.00018899,2]
[351018487,1738293033329,-151.0,0.00018899,2]
[351018488,1738293033340,-151.0,0.00018899,2]
[351018489,1738293033349,-999.0,0.00018899,2]
[351018490,1738293033360,-151.0,0.00018899,2]
[351018491,1738293033370,-151.468488,0.00018899,2]
[351018492,1738293033390,-151.0,0.00018899,2]
[351018493,1738293033404,-151.0,0.00018899,2]